bitfinex/quotes_ETHUSD_20260111
["timestamp","ask_amount","ask_price","bid_price","bid_amount"]
[1768149220835,0.0008024,3139.3,3138.4,0.18106075]
[1768149220836,0.0008024,3138.8,3138.4,0.10024169]
[1768149221036,0.0008024,3138.8,3138.2,0.0008008]
[1768149221236,0.25,3138.7,3138.2,3.18729857]
[1768149221637,0.25,3138.7,3138.2,0.0008008]
[1768149221839,0.11295692,3138.7,3138.2,0.0008008]
[1768149222040,0.0008024,3138.8,3138.2,0.0008008]
[1768149222240,0.0008024,3138.8,3138.3,0.31873894]
[1768149222419,0.0008024,3138.8,3138.2,0.0008008]
[1768149222624,4.73448774,3138.8,3138.2,0.0008008]
[1768149222822,0.0008024,3138.8,3138.2,0.0008008]
[1768149223025,0.25,3138.7,3138.2,0.0008008]
[1768149223330,0.25,3138.6,3138.2,0.0008008]
[1768149224725,3.43618881,3138.6,3138.2,0.0008008]
[1768149225550,6.62237762,3138.6,3138.2,0.0008008]
[1768149225741,3.43618881,3138.6,3138.2,0.0008008]
[1768149225948,6.62237762,3138.6,3138.2,0.0008008]
[1768149226343,8.17086568,3138.6,3137.3,1.66231415]
[1768149226547,1.54768726,3138.5,3137.2,1.66231415]
[1768149226733,1.54768726,3138.5,3137.1,0.001]
[1768149226734,6.37287702,3138.3,3137.1,1.66331415]
[1768149226932,11.10700279,3138.3,3137.1,0.001]
[1768149227144,1.54768726,3138.2,3137.1,0.001]
[1768149227823,1.55724886,3138.2,3137.1,0.001]
[1768149228747,1.54768726,3138.0,3137.1,0.001]
[1768149228950,1.79768726,3137.9,3137.1,0.001]
[1768149229454,1.79768726,3137.9,3137.1,0.00012435]
[1768149229954,1.54768726,3137.7,3137.1,0.00012435]
[1768149230162,1.54768726,3137.5,3137.1,0.00012435]
[1768149230573,9.55992477,3138.1,3137.1,0.00012435]
[1768149230574,0.25,3137.4,3137.1,0.00012435]
[1768149230941,1.54768726,3138.4,3137.1,0.00012435]
[1768149231140,1.79768726,3138.3,3137.1,0.00012435]
[1768149231838,1.80724931,3138.3,3137.1,0.00012435]
[1768149232732,1.54768726,3138.1,3137.1,0.00012435]
[1768149233358,1.55724931,3138.1,3137.1,0.00012435]
[1768149233563,1.54768726,3138.1,3137.1,0.00012435]
[1768149233765,2.02924656,3138.0,3137.1,0.00012435]
[1768149234036,1.54768726,3137.9,3137.1,0.00012435]
[1768149234973,6.37409566,3137.7,3137.1,0.00012435]
[1768149235272,3.18704783,3137.7,3137.1,0.00012435]
[1768149235840,6.37409566,3137.7,3137.1,0.00012435]
[1768149236373,0.25,3137.8,3137.1,0.00012435]
[1768149236544,3.4369482,3137.8,3137.1,0.00012435]
[1768149237083,0.25,3137.9,3137.1,0.00012435]
[1768149237584,6.37290613,3138.3,3137.1,0.00012435]
[1768149237747,0.238,3138.2,3137.1,0.00012435]
[1768149237950,6.37290613,3138.3,3137.1,0.00012435]
[1768149238155,3.43699848,3138.6,3137.1,0.00012435]
[1768149238478,3.43694494,3138.6,3137.1,1.55110467]
[1768149238677,6.62308908,3138.6,3137.1,3.46341882]
[1768149238887,6.62308908,3138.6,3137.3,3.18745418]
[1768149239451,6.62308908,3138.6,3137.2,3.53386577]
[1768149241081,0.002,3137.9,3137.3,0.03187454]
[1768149241302,0.002,3138.2,3137.2,8.52240187]
[1768149241487,0.002,3138.2,3137.3,1.01848404]
[1768149242277,0.0008008,3138.6,3137.4,1.58285384]
[1768149242472,0.0008024,3138.8,3137.7,0.00956205]
[1768149242684,0.0008024,3138.8,3138.2,0.00080088]
[1768149242883,0.2508024,3139.3,3138.2,0.00080088]
[1768149242884,0.0008024,3139.3,3138.4,0.0008032]
[1768149243181,0.0008024,3139.3,3138.4,0.16719502]
[1768149243586,0.0008024,3139.3,3138.4,0.0008032]
[1768149245256,0.0008024,3139.3,3138.4,3.18714018]
[1768149246185,0.0008024,3139.3,3138.4,6.37347716]
[1768149246387,0.0008024,3139.3,3138.4,3.18714018]
[1768149246690,0.0008024,3139.3,3138.4,6.37347716]
[1768149246866,0.0008024,3139.3,3138.5,0.74932891]
[1768149247189,0.0008024,3139.3,3138.6,3.18613394]
[1768149247493,0.0008024,3139.3,3138.6,9.55840182]
[1768149247694,0.0008024,3139.3,3138.6,7.49207985]
[1768149248892,0.0008024,3139.3,3138.5,5.05533168]
[1768149249155,0.0008024,3139.3,3138.6,0.50561349]
[1768149249274,0.0008024,3139.3,3138.4,0.0008032]
[1768149249475,0.0008024,3139.3,3138.6,3.18607846]
[1768149249675,0.0008024,3139.3,3138.6,1.11981197]
[1768149250003,0.0008024,3139.3,3138.6,3.18611645]
[1768149250168,0.0008024,3139.3,3138.6,6.37225039]
[1768149250489,0.0008024,3139.3,3138.7,0.77420624]
[1768149251295,0.0008024,3139.3,3138.6,6.37226543]
[1768149251500,0.0008024,3139.3,3138.4,1.12061517]
[1768149251676,1.47915407,3139.3,3138.4,0.0008032]
[1768149252092,0.25,3139.2,3138.4,0.0008032]
[1768149252266,0.2508024,3139.3,3138.4,0.0008032]
[1768149252468,0.0008024,3139.3,3138.5,6.37246125]
[1768149252686,0.0008024,3139.3,3138.6,0.64051278]
[1768149253106,0.0008024,3139.3,3138.4,0.0008032]
[1768149253915,0.0008024,3139.3,3138.4,1.53627776]
[1768149254090,0.0008024,3139.3,3138.5,0.03186235]
[1768149254414,0.0008024,3139.3,3138.7,0.001]
[1768149254612,0.0011976,3139.0,3138.7,0.001]
[1768149254800,0.002,3139.3,3138.9,0.0008032]
[1768149255003,0.002,3139.5,3138.9,0.0008032]
[1768149264613,0.002,3139.5,3138.7,0.001]
[1768149264614,1.48035167,3139.5,3138.7,0.001]
[1768149264814,1.48035167,3139.5,3137.8,1.53547456]
[1768149264815,1.48791372,3139.4,3137.5,1.67720607]
[1768149265016,0.00080088,3138.6,3137.3,2.69569011]
[1768149265195,1.72835167,3138.5,3137.4,3.18728513]
[1768149265391,1.72835167,3138.5,3137.2,3.18750328]
[1768149265392,0.25,3138.5,3137.2,3.18750328]
[1768149265726,1.72835167,3138.5,3137.2,3.1875029]
[1768149265927,1.72835167,3138.5,3137.1,3.18773847]
[1768149266092,1.72835167,3138.5,3137.1,0.00012435]
[1768149266296,1.47835167,3138.4,3137.1,0.16785739]
[1768149266604,6.37287702,3138.3,3137.1,0.16785739]
[1768149266809,0.25,3138.2,3137.1,0.16785739]
[1768149267010,0.25,3138.2,3137.1,0.00012435]
[1768149267409,0.25,3138.2,3137.1,3.18777319]
[1768149268047,1.72835167,3138.2,3137.1,0.00012435]
[1768149268641,6.37328318,3138.1,3137.1,0.00012435]
[1768149268814,1.47835167,3138.0,3137.1,0.00012435]
[1768149270598,6.3736894,3137.9,3137.1,0.00012435]
[1768149270926,7.85204107,3137.9,3137.1,0.00012435]
[1768149271606,6.3736894,3137.9,3137.1,0.00012435]
[1768149271810,7.85204107,3137.9,3137.1,0.00012435]
[1768149273409,11.03888577,3137.9,3137.1,0.00012435]
[1768149274234,1.52688672,3137.8,3137.1,0.00012435]
[1768149274535,0.25,3137.7,3137.1,0.00012435]
[1768149274723,0.25,3137.6,3137.1,0.00012435]
[1768149275444,1.77688672,3137.6,3137.1,0.00012435]
[1768149275643,1.77688672,3137.6,3136.8,0.00081526]
[1768149275644,0.17768867,3137.5,3136.8,0.00081526]
[1768149275812,1.77688672,3137.6,3136.8,0.00081526]
[1768149276836,1.52688672,3137.4,3136.8,0.00081526]
[1768149277809,1.52688672,3137.4,3135.5,1.92720607]
[1768149277810,1.52770198,3137.2,3135.3,1.67720607]
[1768149278027,1.52770198,3137.2,3135.4,1.63392538]
[1768149278214,0.00081526,3137.2,3136.2,3.18848992]
[1768149278432,0.00081526,3137.2,3136.3,0.31884899]
[1768149278433,0.25,3137.1,3136.3,0.31884899]
[1768149278634,0.25,3137.1,3136.0,3.18872947]
[1768149278812,3.187759,3137.0,3135.8,6.37793732]
[1768149279015,3.187759,3137.0,3135.8,3.18895844]
[1768149279307,3.187759,3137.0,3135.7,5.05064921]
[1768149279308,3.187759,3137.0,3135.7,3.18907189]
[1768149279643,7.90240472,3137.0,3135.7,3.18907189]
[1768149280029,4.71464572,3137.0,3135.7,3.18907189]
[1768149280208,0.25,3137.1,3135.7,6.37815247]
[1768149280608,0.25,3137.1,3135.7,6.62815247]
[1768149280815,3.187759,3137.0,3135.7,6.62815247]
[1768149281009,3.43769865,3137.1,3135.7,6.62815247]
[1768149281010,3.43770618,3137.1,3135.7,6.37815247]
[1768149281209,3.43770618,3137.1,3135.8,0.6387718]
[1768149281646,0.25,3137.1,3135.8,0.6387718]
[1768149282841,0.00081526,3137.2,3135.9,6.37775438]
[1768149283010,0.00081526,3137.2,3136.1,1.61159709]
[1768149283838,0.00081526,3137.2,3135.9,6.37775438]
[1768149284010,0.00081526,3137.2,3136.0,0.70260917]
[1768149284741,0.25,3137.1,3136.0,0.70260917]
[1768149284952,3.187759,3137.0,3136.0,0.70260917]
[1768149285163,3.187759,3137.0,3136.0,3.89136209]
[1768149285443,6.375518,3137.0,3136.0,0.70260917]
[1768149285736,1.52688672,3136.9,3135.6,3.18915516]
[1768149285941,1.52688672,3136.9,3135.4,0.25]
[1768149286241,1.52688672,3136.9,3135.8,3.18893761]
[1768149286443,1.52688672,3136.9,3135.9,0.03188877]
[1768149287153,3.18796225,3136.8,3135.8,3.18892386]
[1768149287355,4.71484897,3136.8,3135.6,3.18914931]
[1768149287767,3.18794951,3136.9,3135.7,0.0318908]
[1768149288257,3.18794951,3136.9,3135.9,3.18885804]
[1768149288423,0.25,3136.8,3136.0,0.03188775]
[1768149288628,3.18840455,3137.2,3136.0,0.32207458]
[1768149289144,0.6587,3137.1,3136.1,3.18867383]
[1768149289754,0.6587,3137.1,3136.1,6.37734766]
[1768149290550,0.6587,3137.1,3136.2,0.001]
[1768149292059,3.8463586,3137.1,3136.2,0.001]
[1768149292775,3.8463586,3137.1,3136.2,0.66373953]
[1768149293555,1.52688672,3137.0,3136.2,0.66373953]
[1768149293934,1.52688672,3137.0,3136.2,0.001]
[1768149294330,1.52688672,3137.0,3136.2,3.18956174]
[1768149294548,1.52688672,3137.0,3136.2,0.001]
[1768149295025,1.52688672,3137.0,3136.2,3.18957073]
[1768149295559,1.52688672,3137.0,3136.2,0.001]
[1768149295720,1.52688672,3137.0,3136.2,0.8387727]
[1768149296120,0.6587,3137.1,3136.2,0.8387727]
[1768149296357,0.6587,3137.1,3136.3,0.0318847]
[1768149296560,0.6587,3137.1,3136.2,2.51597877]
[1768149297726,0.6587,3137.1,3136.3,3.18847049]
[1768149297929,0.6587,3137.1,3136.4,0.88929334]
[1768149299158,0.6587,3137.1,3136.3,3.18847049]
[1768149299454,0.00081526,3137.2,3136.3,3.18847049]
[1768149300342,0.00081526,3137.2,3136.3,6.37694098]
[1768149300741,0.00081526,3137.2,3136.4,1.60203153]
[1768149301047,0.002,3137.6,3136.4,1.60203153]
[1768149301262,0.002,3137.6,3136.8,0.01038193]
[1768149301431,1.52688672,3138.0,3136.9,0.25]
[1768149301941,1.77688672,3138.4,3137.0,9.57284286]
[1768149302142,1.77688672,3138.4,3137.0,14.36263339]
[1768149302335,0.25,3138.4,3137.1,1.60203153]
[1768149302538,1.52688672,3138.7,3137.3,1.61159739]
[1768149302752,0.0008032,3138.8,3137.4,1.85203153]
[1768149302953,0.0008032,3138.8,3137.5,0.25]
[1768149303148,0.0008032,3138.8,3138.4,0.01886535]
[1768149305555,1.44453996,3138.8,3138.4,0.01886535]
[1768149306028,0.0008032,3138.8,3138.4,0.01886535]
[1768149307164,0.0028032,3139.3,3138.4,0.01886535]
[1768149307462,3.18443719,3140.3,3138.9,0.000804]
[1768149307463,1.44373676,3139.4,3138.9,0.000804]
[1768149307650,0.46309573,3139.3,3138.9,0.000804]
[1768149307853,3.18725152,3139.5,3138.9,0.000804]
[1768149307854,0.002,3139.5,3138.9,0.000804]
[1768149308044,3.18722077,3139.5,3138.9,0.000804]
[1768149308241,0.002,3139.5,3138.9,0.000804]
[1768149311064,3.18440913,3140.3,3138.9,0.000804]
[1768149311373,4.98838666,3140.4,3138.9,1.43862354]
[1768149311574,0.49903867,3140.3,3138.9,1.43862354]
[1768149311864,0.25,3140.4,3138.9,1.43862354]
[1768149312178,6.6186584,3140.4,3138.9,1.43862354]
[1768149312368,1.5540784,3140.3,3139.0,0.25]
[1768149312538,4.73858894,3140.2,3139.1,3.43562645]
[1768149312738,3.18451054,3140.2,3139.1,3.43562645]
[1768149312965,3.43433118,3140.4,3139.1,6.96489595]
[1768149313549,0.002,3140.5,3139.2,1.43781954]
[1768149314481,0.002,3140.6,3139.5,0.00956586]
[1768149314650,0.002,3140.6,3139.6,0.25]
[1768149315573,0.002808,3140.8,3139.7,0.00956586]
[1768149315748,0.002808,3140.8,3139.7,0.1793044]
[1768149316567,0.002808,3140.8,3139.8,6.36983246]
[1768149316763,0.002,3140.8,3139.8,6.61983246]
[1768149316988,1.5540784,3141.2,3140.4,0.0008088]
[1768149320767,4.73760409,3141.2,3140.4,0.0008088]
[1768149321097,0.47396041,3141.1,3140.4,0.0008088]
[1768149321304,1.5540784,3141.0,3139.7,0.16973854]
[1768149321605,1.5540784,3141.0,3139.8,3.18485907]
[1768149321606,0.0008088,3140.8,3139.8,3.18485907]
[1768149321775,0.0008088,3140.8,3139.9,3.18479506]
[1768149322671,0.0008088,3140.8,3139.6,6.37023824]
[1768149322874,0.31846096,3140.7,3139.6,6.37023824]
[1768149323909,1.87253936,3140.7,3139.5,0.25]
[1768149324800,4.73818334,3140.6,3139.5,0.25]
[1768149325003,1.5540784,3140.5,3139.4,3.18532191]
[1768149325212,1.5540784,3140.6,3139.2,1.43781954]
[1768149325379,1.5540784,3140.6,3139.5,3.18521247]
[1768149325697,1.5540784,3140.6,3139.4,3.43527172]
[1768149325997,1.5540784,3140.6,3139.5,3.18519495]
[1768149326574,1.5540784,3140.6,3139.5,6.37041552]
[1768149326767,3.18473137,3140.8,3139.6,0.03185119]
[1768149327067,3.18473137,3140.8,3139.7,3.18501767]
[1768149327275,3.18473137,3140.8,3139.8,0.03184916]
[1768149327702,0.0008088,3140.8,3139.8,0.03184916]
[1768149328001,0.0008088,3140.8,3139.9,0.25]
[1768149328869,0.0008088,3140.8,3139.9,3.43475504]
[1768149329077,0.0008088,3140.8,3140.2,0.001]
[1768149329719,0.6587,3140.7,3140.2,0.001]
[1768149330286,2.2127784,3140.7,3140.2,0.001]
[1768149330586,0.22135872,3140.6,3140.2,0.001]
[1768149331296,3.40550706,3140.6,3140.2,0.001]
[1768149331889,4.95958546,3140.6,3140.2,0.001]
[1768149332094,1.77543712,3140.6,3140.2,0.001]
[1768149332295,0.22135872,3140.6,3140.2,0.001]
[1768149333477,1.96049123,3140.5,3139.1,4.17364305]
[1768149333786,1.5540784,3140.4,3139.1,0.34364305]
[1768149333996,1.5540784,3140.4,3139.3,3.18535931]
[1768149334692,1.5540784,3140.4,3139.0,1.68781954]
[1768149334893,1.5540784,3140.4,3139.3,3.18534858]
[1768149335089,1.5540784,3140.4,3139.0,1.43781954]
[1768149335302,3.18451054,3140.2,3139.1,3.18556476]
[1768149335503,1.51184856,3140.1,3139.1,3.18556476]
[1768149335717,1.51184856,3140.1,3139.0,3.18565058]
[1768149335892,3.18451054,3140.2,3139.0,6.37137851]
[1768149336087,3.18451054,3140.2,3139.0,3.18565058]
[1768149336288,3.18451054,3140.2,3139.1,0.6622247]
[1768149336484,6.36902108,3140.2,3139.1,0.6622247]
[1768149337001,7.88086964,3140.2,3139.1,0.6622247]
[1768149337181,1.51184856,3140.1,3139.0,3.43572371]
[1768149337382,3.18471337,3140.0,3138.9,3.18659227]
[1768149337603,3.18471337,3140.0,3138.9,3.43659227]
[1768149337806,3.18471337,3140.0,3138.9,3.43658829]
[1768149338018,3.18471337,3140.0,3138.9,0.250804]
[1768149338198,3.18471337,3140.0,3138.9,0.16975569]
[1768149338389,3.18471337,3140.0,3138.9,0.41975569]
[1768149338582,4.69656193,3140.0,3138.9,0.41975569]
[1768149338783,1.51184856,3140.0,3138.9,0.41975569]
[1768149339022,1.51184856,3140.0,3139.0,3.18571249]
[1768149339188,1.51184856,3140.0,3139.0,7.05056761]
[1768149340096,1.51184856,3140.0,3139.0,3.86483968]
[1768149340818,3.18451054,3140.2,3139.0,3.86483968]
[1768149341200,4.94630737,3140.3,3139.3,0.001]
[1768149341689,1.51184856,3140.2,3139.3,0.001]
[1768149343592,1.51184856,3140.0,3139.3,0.001]
[1768149344828,1.76184856,3140.0,3139.3,0.001]
[1768149345592,4.94658693,3140.0,3139.3,0.001]
[1768149346199,0.25,3140.0,3139.3,0.001]
[1768149348426,1.51184856,3139.9,3139.3,0.001]
[1768149350226,3.18491623,3139.8,3139.3,0.001]
[1768149350441,7.88168102,3139.8,3139.3,0.001]
[1768149350600,1.51184856,3139.7,3139.3,0.001]
[1768149352524,4.69689255,3139.7,3139.3,0.001]
[1768149353633,0.9087,3140.0,3139.3,0.001]
[1768149354736,4.09342636,3140.0,3139.3,0.001]
[1768149355046,0.9087,3140.0,3139.3,0.001]
[1768149355244,0.6587,3140.0,3139.3,0.001]
[1768149356433,0.0008088,3140.8,3139.6,1.43771288]
[1768149356636,0.0008088,3140.8,3139.6,1.68771288]
[1768149356832,0.0008088,3140.8,3139.8,1.43771288]
[1768149358746,0.0008088,3140.8,3140.0,1.43771288]
[1768149359658,0.0008088,3140.8,3139.7,1.60648417]
[1768149359860,1.51265736,3140.8,3139.7,3.60376542]
[1768149360159,0.0008088,3140.8,3139.8,6.73020679]
[1768149360453,0.0008088,3140.8,3139.9,1.43771288]
[1768149361121,0.002,3140.9,3140.3,1.43771288]
[1768149361322,0.002,3141.2,3140.4,1.43852248]
[1768149362838,0.002,3141.2,3140.6,1.43771288]
[1768149363038,0.002,3141.2,3140.6,1.92594235]
[1768149363621,0.002,3141.2,3140.4,0.0008096]
[1768149364327,0.002,3140.9,3140.4,0.0008096]
[1768149367769,0.002,3141.2,3140.9,1.998]
[1768149368174,1.44645698,3141.2,3140.9,1.998]
[1768149370681,1.44645698,3141.2,3140.4,0.0008096]
[1768149371008,1.44445698,3141.0,3140.4,0.0008096]
[1768149373378,4.62816849,3141.0,3140.4,0.0008096]
[1768149374169,1.44445698,3140.9,3140.4,0.0008096]
[1768149375909,1.44445698,3140.8,3140.4,0.0008096]
[1768149376269,1.44445698,3140.8,3140.7,0.001]
[1768149376595,1.44445698,3140.7,3140.4,0.0008096]
[1768149377097,1.44445698,3140.7,3139.6,0.001]
[1768149377399,1.44445698,3140.4,3139.6,0.001]
[1768149377599,1.44445698,3140.2,3139.6,0.001]
[1768149377906,1.44445698,3140.0,3139.6,0.001]
[1768149379524,1.44445698,3139.9,3139.3,0.001]
[1768149379805,1.69445698,3139.8,3139.3,0.001]
[1768149381087,4.87940517,3139.8,3139.3,0.001]
[1768149382400,1.69445698,3139.8,3139.3,0.001]
[1768149383614,0.25,3139.8,3139.3,0.001]
[1768149383923,3.18372243,3141.0,3139.3,0.001]
[1768149383924,0.25,3139.9,3139.3,0.001]
[1768149384580,3.4348221,3139.9,3139.3,0.001]
[1768149385442,1.44445698,3139.8,3139.3,0.001]
[1768149386299,3.18501767,3139.7,3139.3,0.001]
[1768149387500,4.62940639,3139.8,3139.3,0.001]
[1768149388132,4.62940639,3139.8,3139.6,0.001]
[1768149388357,4.62940639,3139.8,3139.3,0.001]
[1768149388358,0.002,3139.6,3139.3,0.001]
[1768149388558,1.44645698,3139.6,3139.3,0.001]
[1768149388751,0.002,3139.6,3139.3,0.001]
[1768149389250,0.00020586,3139.6,3139.3,0.001]
[1768149397742,0.00020586,3139.6,3139.3,1.3330506]
[1768149398432,0.00020586,3139.6,3139.3,0.001]
[1768149399339,0.002,3139.9,3139.5,1.3320506]
[1768149399886,3.18472279,3140.8,3139.3,4.41912426]
[1768149399887,4.52392118,3140.8,3139.7,1.3320506]
[1768149400169,4.52392118,3140.8,3139.3,4.66912426]
[1768149400170,1.33916548,3140.6,3139.3,1.36490483]
[1768149400341,1.33916548,3140.6,3139.3,1.3330506]
[1768149400539,1.33916548,3140.6,3139.6,0.001]
[1768149401281,4.63627003,3140.7,3139.6,0.001]
[1768149401282,0.002,3139.9,3139.6,0.001]
[1768149403246,1.34116548,3139.9,3139.3,0.001]
[1768149404206,1.33916548,3139.6,3138.9,0.000804]
[1768149404799,1.33916548,3139.3,3138.9,0.000804]
[1768149405779,4.52459355,3139.3,3138.9,0.000804]
[1768149406210,1.33916548,3139.3,3138.9,0.000804]
[1768149406514,0.38405489,3139.3,3138.7,0.001]
[1768149406817,0.000804,3139.3,3138.7,0.001]
[1768149407177,4.52541747,3139.3,3138.7,0.001]
[1768149407904,1.33916548,3139.2,3138.7,0.001]
[1768149408607,0.000804,3139.3,3138.7,0.001]
[1768149408905,1.33996948,3139.3,3138.7,0.001]
[1768149410108,1.33916548,3139.2,3138.7,0.001]
[1768149410572,0.000804,3139.3,3138.7,0.001]
[1768149412690,0.000804,3139.3,3139.0,0.001]
[1768149414486,1.33996948,3139.3,3139.0,0.001]
[1768149420914,0.000804,3139.3,3139.0,0.001]
[1768149423724,1.33996948,3139.3,3139.0,0.001]
[1768149424641,1.34196948,3139.3,3139.0,0.001]
[1768149426252,1.28774802,3139.2,3139.0,0.001]
[1768149426628,1.28774802,3139.2,3138.7,0.001]
[1768149427444,0.002804,3139.3,3138.7,0.001]
[1768149430921,1.32675313,3139.3,3138.7,0.001]
[1768149431369,0.002804,3139.3,3138.8,1.30729415]
[1768149431574,0.00080401,3139.3,3138.8,1.30729415]
[1768149431864,0.00080401,3139.3,3138.9,1.30809895]
[1768149433549,0.00080401,3139.3,3138.9,0.0008048]
[1768149433854,0.00080401,3139.3,3139.0,0.38308048]
[1768149444585,0.00080401,3139.3,3138.9,0.0008048]
[1768149449053,0.00080401,3139.3,3139.2,0.001]
[1768149450098,1.32475314,3139.3,3138.4,0.000804]
[1768149450297,1.32394913,3139.0,3138.2,0.00080096]
[1768149450591,1.32394913,3139.0,3137.6,1.30729415]
[1768149450592,1.32475313,3138.8,3137.6,1.30729415]
[1768149450758,1.32475313,3138.8,3137.2,3.18753799]
[1768149450759,0.00080096,3138.6,3137.8,1.30729415]
[1768149450950,0.25080096,3138.6,3137.9,1.30729415]
[1768149451155,1.32475009,3138.6,3137.7,1.30729415]
[1768149451380,1.32475009,3138.6,3137.8,0.47444312]
[1768149451581,1.32475009,3138.6,3137.3,1.30729415]
[1768149451964,1.32475009,3138.6,3137.5,4.49454435]
[1768149452554,1.32475009,3138.6,3137.5,1.30729415]
[1768149454263,1.24397534,3138.5,3137.5,1.30729415]
[1768149454589,1.24397534,3138.5,3137.6,1.23288459]
[1768149454790,1.24397534,3138.5,3137.7,1.67489624]
[1768149455370,0.00080096,3138.6,3137.8,1.26475405]
[1768149455759,0.25080096,3138.6,3137.8,1.23288459]
[1768149455960,0.25080096,3138.6,3137.9,1.23288459]
[1768149456165,1.2447763,3138.6,3137.8,3.18688977]
[1768149456372,0.00080096,3138.6,3138.0,1.23288459]
[1768149459728,0.000804,3138.8,3138.2,1.23368563]
[1768149460500,0.000804,3138.8,3138.2,1.23468563]
[1768149460689,0.002,3138.3,3138.2,1.23468563]
[1768149460884,1.24477934,3138.8,3138.2,0.44393983]
[1768149461102,0.002,3138.6,3138.2,0.00180104]
[1768149461569,1.24397534,3138.5,3138.2,0.00180104]
[1768149462172,0.002,3138.6,3138.2,0.00180104]
[1768149462374,0.002,3138.6,3138.2,1.23468563]
[1768149465981,0.002,3138.6,3138.3,0.03186438]
[1768149466417,0.002,3138.6,3138.4,1.23288459]
[1768149466590,0.000804,3138.8,3138.6,1.23288459]
[1768149466785,0.00160881,3139.3,3138.7,1.23288459]
[1768149466985,0.00160881,3139.3,3138.8,1.23288459]
[1768149467188,0.00160881,3139.3,3138.7,3.83]
[1768149470324,0.00160881,3139.3,3138.6,5.06288459]
[1768149470621,0.00160881,3139.3,3138.7,0.58223595]
[1768149472190,1.24558415,3139.3,3138.7,0.58223595]
[1768149472929,0.00160881,3139.3,3138.7,1.81512054]
[1768149473395,0.002,3139.0,3138.7,1.81512054]
[1768149474025,0.002,3139.0,3138.8,1.23288459]
[1768149474228,0.002,3139.0,3138.9,0.18151205]
[1768149474423,0.00160881,3139.3,3138.9,1.41439664]
[1768149476526,0.002,3139.9,3139.1,1.23288459]
[1768149476826,1.24597534,3139.9,3139.1,1.23288459]
[1768149477133,0.002,3139.9,3139.3,1.23288459]
[1768149477496,0.002,3139.9,3139.2,0.50628846]
[1768149478225,0.002,3139.9,3139.2,4.92467932]
[1768149478431,0.002,3139.9,3139.3,1.23288459]
[1768149478599,0.002,3139.9,3139.4,0.49246793]
[1768149480704,0.002,3139.9,3139.5,1.23288459]
[1768149481910,1.49397534,3140.4,3139.6,3.18511912]
[1768149482234,1.24397534,3140.4,3139.6,3.18511912]
[1768149482404,1.24397534,3140.4,3139.5,4.41806055]
[1768149482600,1.24397534,3140.3,3139.6,0.49105285]
[1768149482823,1.24397534,3140.3,3139.3,3.1853379]
[1768149483135,1.24397534,3140.3,3139.4,3.18526346]
[1768149484038,1.24397534,3140.3,3139.3,3.18542313]
[1768149485019,1.15794758,3140.0,3139.3,3.18542313]
[1768149485422,1.15794758,3140.0,3139.3,6.37084663]
[1768149485623,1.15794758,3140.0,3139.4,0.81100197]
[1768149486315,1.15794758,3139.9,3139.0,7.26570127]
[1768149486517,1.15794758,3139.9,3139.0,3.83]
[1768149486943,1.15794758,3139.9,3139.0,7.01567138]
[1768149487144,1.15794758,3139.9,3139.0,3.83]
[1768149487447,1.15794758,3139.9,3139.1,3.18555508]
[1768149487613,1.15794758,3139.9,3139.2,0.70155551]
[1768149487809,1.15794758,3139.9,3139.2,7.71706494]
[1768149488046,1.15794758,3139.9,3139.3,3.1854046]
[1768149488247,1.15794758,3139.9,3139.2,4.53155551]
[1768149489319,1.10737012,3139.8,3139.2,3.83]
[1768149490015,1.10737012,3139.7,3139.2,3.83]
[1768149491334,1.10737012,3139.7,3139.2,2.61541678]
[1768149491524,1.10737012,3139.7,3139.2,1.40083356]
[1768149491954,1.02528374,3139.7,3139.2,1.40083356]
[1768149492248,0.4210238,3139.6,3139.2,1.40083356]
[1768149493142,1.04492065,3139.5,3139.2,1.40083356]
[1768149493336,3.18502502,3139.7,3139.2,1.40083356]
[1768149493747,1.04492065,3139.6,3139.2,1.40083356]
[1768149493951,3.18496734,3139.8,3139.2,1.40083356]
[1768149494146,1.04359681,3139.8,3139.2,1.40083356]
[1768149494355,1.04359681,3139.6,3139.2,1.40083356]
[1768149494651,1.46643945,3139.7,3139.2,1.40083356]
[1768149494860,1.04359681,3139.6,3139.2,1.40083356]
[1768149495059,0.42284264,3139.7,3139.2,1.40083356]
[1768149495561,1.04225006,3139.6,3139.2,1.40083356]
[1768149496458,0.42284264,3139.7,3139.2,1.40083356]
[1768149497049,1.03951247,3139.6,3139.2,1.40083356]
[1768149498559,6.36978259,3139.9,3139.2,1.40083356]
[1768149500163,3.18488154,3139.9,3139.2,1.40083356]
[1768149500560,6.36978259,3139.9,3139.2,1.35083356]
[1768149501263,7.40266923,3139.9,3139.2,1.35083356]
[1768149501467,5.42063324,3139.8,3138.9,0.0008056]
[1768149502740,1.03389789,3139.7,3138.9,0.0008056]
[1768149503369,1.05404686,3139.5,3138.9,0.0008056]
[1768149503568,1.05404686,3139.3,3138.9,0.0008056]
[1768149505656,1.05404686,3139.3,3138.3,4.57604181]
[1768149505657,0.0008048,3138.8,3138.3,4.57604181]
[1768149505853,0.0008048,3138.8,3138.3,3.38799934]
[1768149506063,0.0008048,3138.8,3138.4,0.72198004]
[1768149506368,0.0008048,3138.8,3138.5,1.18804247]
[1768149506575,0.0008048,3138.8,3138.4,0.72198004]
[1768149506774,0.0008048,3138.8,3138.3,0.2016104]
[1768149507280,0.0008048,3138.8,3138.2,0.00180104]
[1768149508380,0.0008048,3138.8,3138.2,1.18984351]
[1768149509739,0.0008048,3138.8,3138.2,0.00180104]
[1768149510566,0.0008048,3138.8,3138.3,1.18804247]
[1768149511150,0.0008048,3138.8,3138.2,0.00180104]
[1768149511349,0.0008048,3138.8,3138.3,1.18804247]
[1768149512458,0.0008048,3138.8,3138.2,0.00180104]
[1768149512459,0.2508048,3138.8,3138.2,0.00180104]
[1768149512781,0.2508048,3138.8,3138.3,1.18804247]
[1768149513458,0.2508048,3138.8,3138.4,1.18804247]
[1768149516952,0.0008048,3138.8,3138.4,1.18804247]
[1768149521193,0.002,3138.5,3138.4,1.18804247]
[1768149521394,0.0008048,3138.8,3138.5,1.21045836]
[1768149521561,0.0028048,3138.8,3138.5,1.21045836]
[1768149525319,0.0028048,3138.8,3138.7,1.21045836]
[1768149525669,1.07615078,3139.3,3138.7,0.43966163]
[1768149525868,0.0008056,3139.3,3138.8,1.21045836]
[1768149526702,4.26331305,3139.3,3138.5,1.21045836]
[1768149527399,3.18623009,3139.3,3138.5,1.21045836]
[1768149527603,0.0008056,3139.3,3138.5,1.21045836]
[1768149527791,0.0008056,3139.3,3138.6,1.21045836]